fUSD/lending_fUSD_20240831
["ID","MTS","AMOUNT","RATE_DAILY","PERIOD"]
[336734396,1725091837740,-500.0,0.00019255,2]
[336734397,1725091837750,-500.0,0.00019255,2]
[336734398,1725091837759,-500.0,0.00019255,2]
[336734399,1725091837769,-500.0,0.00019255,2]
[336734400,1725091837778,-500.0,0.00019255,2]
[336734401,1725091837788,-500.0,0.00019255,2]
[336734402,1725091837798,-500.0,0.00019255,2]
[336734403,1725091837807,-500.0,0.00019255,2]
[336734404,1725091837817,-500.0,0.00019255,2]
[336734405,1725091837827,-500.0,0.00019255,2]
[336734406,1725091837836,-500.0,0.00019255,2]
[336734407,1725091837845,-352.69360359,0.00019255,2]
[336734408,1725091838028,-147.30639641,0.00019255,2]
[336734409,1725091838038,-500.0,0.00019255,2]
[336734410,1725091838048,-500.0,0.00019255,2]
[336734411,1725091838057,-500.0,0.00019255,2]
[336734412,1725091838067,-500.0,0.00019255,2]
[336734413,1725091838077,-500.0,0.00019255,2]
[336734414,1725091838086,-500.0,0.00019255,2]
[336734416,1725091838096,-500.0,0.00019255,2]
[336734417,1725091838105,-500.0,0.00019255,2]
[336734418,1725091838114,-500.0,0.00019255,2]
[336734419,1725091838123,-500.0,0.00019255,2]
[336734420,1725091838132,-500.0,0.00019255,2]
[336734422,1725091838141,-500.0,0.00019255,2]
[336734423,1725091838150,-500.0,0.00019255,2]
[336734424,1725091838159,-500.0,0.00019255,2]
[336734425,1725091838168,-500.0,0.00019255,2]
[336734426,1725091838177,-500.0,0.00019255,2]
[336734427,1725091838186,-500.0,0.00019255,2]
[336734429,1725091838195,-500.0,0.00019255,2]
[336734430,1725091838205,-500.0,0.00019255,2]
[336734431,1725091838214,-500.0,0.00019255,2]
[336734432,1725091838223,-500.0,0.00019255,2]
[336734433,1725091838232,-500.0,0.00019255,2]
[336734434,1725091838242,-500.0,0.00019255,2]
[336734436,1725091838251,-500.0,0.00019255,2]
[336734438,1725091838260,-500.0,0.00019255,2]
[336734440,1725091838269,-500.0,0.00019255,2]
[336734442,1725091838278,-500.0,0.00019255,2]
[336734443,1725091838287,-500.0,0.00019255,2]
[336734445,1725091838297,-500.0,0.00019255,2]
[336734447,1725091838306,-500.0,0.00019255,2]
[336734449,1725091838316,-500.0,0.00019255,2]
[336734451,1725091838325,-500.0,0.00019255,2]
[336734453,1725091838334,-500.0,0.00019255,2]
[336734455,1725091838344,-500.0,0.00019255,2]
[336734457,1725091838353,-500.0,0.00019255,2]
[336734459,1725091838363,-500.0,0.00019255,2]
[336734461,1725091838375,-500.0,0.00019255,2]
[336734463,1725091838385,-500.0,0.00019255,2]
[336734465,1725091838395,-500.0,0.00019255,2]
[336734467,1725091838404,-500.0,0.00019255,2]
[336734469,1725091838414,-500.0,0.00019255,2]
[336734471,1725091838423,-500.0,0.00019255,2]
[336734473,1725091838433,-500.0,0.00019255,2]
[336734475,1725091838443,-500.0,0.00019255,2]
[336734477,1725091838453,-500.0,0.00019255,2]
[336734479,1725091838463,-500.0,0.00019255,2]
[336734481,1725091838472,-500.0,0.00019255,2]
[336734483,1725091838482,-500.0,0.00019255,2]
[336734485,1725091838491,-500.0,0.00019255,2]
[336734487,1725091838501,-500.0,0.00019255,2]
[336734489,1725091838510,-500.0,0.00019255,2]
[336734491,1725091838520,-500.0,0.00019255,2]
[336734493,1725091838529,-500.0,0.00019255,2]
[336734495,1725091838538,-500.0,0.00019255,2]
[336734497,1725091838548,-500.0,0.00019255,2]
[336734499,1725091838557,-500.0,0.00019255,2]
[336734501,1725091838566,-500.0,0.00019255,2]
[336734502,1725091838576,-500.0,0.00019255,2]
[336734504,1725091838586,-500.0,0.00019255,2]
[336734506,1725091838595,-500.0,0.00019255,2]
[336734508,1725091838604,-500.0,0.00019255,2]
[336734509,1725091838614,-500.0,0.00019255,2]
[336734511,1725091838624,-500.0,0.00019255,2]
[336734513,1725091838634,-500.0,0.00019255,2]
[336734515,1725091838643,-500.0,0.00019255,2]
[336734517,1725091838652,-500.0,0.00019255,2]
[336734519,1725091838662,-500.0,0.00019255,2]
[336734521,1725091838671,-500.0,0.00019255,2]
[336734522,1725091838681,-500.0,0.00019255,2]
[336734524,1725091838691,-500.0,0.00019255,2]
[336734526,1725091838700,-500.0,0.00019255,2]
[336734528,1725091838710,-500.0,0.00019255,2]
[336734530,1725091838719,-500.0,0.00019255,2]
[336734532,1725091838728,-500.0,0.00019255,2]
[336734534,1725091838738,-500.0,0.00019255,2]
[336734536,1725091838747,-500.0,0.00019255,2]
[336734537,1725091838757,-500.0,0.00019255,2]
[336734539,1725091838766,-500.0,0.00019255,2]
[336734541,1725091838775,-500.0,0.00019255,2]
[336734543,1725091838784,-500.0,0.00019255,2]
[336734545,1725091838794,-500.0,0.00019255,2]
[336734547,1725091838805,-500.0,0.00019255,2]
[336734549,1725091838815,-500.0,0.00019255,2]
[336734551,1725091838824,-500.0,0.00019255,2]
[336734553,1725091838835,-500.0,0.00019255,2]
[336734555,1725091838844,-500.0,0.00019255,2]
[336734557,1725091838853,-500.0,0.00019255,2]
[336734559,1725091838862,-500.0,0.00019255,2]
[336734561,1725091838872,-500.0,0.00019255,2]
[336734570,1725091838953,-500.0,0.00019255,2]
[336734572,1725091838963,-500.0,0.00019255,2]
[336734574,1725091838972,-500.0,0.00019255,2]
[336734576,1725091838981,-500.0,0.00019255,2]
[336734578,1725091838990,-500.0,0.00019255,2]
[336734579,1725091838999,-500.0,0.00019255,2]
[336734581,1725091839008,-500.0,0.00019255,2]
[336734583,1725091839017,-500.0,0.00019255,2]
[336734585,1725091839026,-500.0,0.00019255,2]
[336734587,1725091839035,-500.0,0.00019255,2]
[336734589,1725091839044,-500.0,0.00019255,2]
[336734591,1725091839053,-500.0,0.00019255,2]
[336734593,1725091839061,-500.0,0.00019255,2]
[336734595,1725091839071,-500.0,0.00019255,2]
[336734597,1725091839079,-500.0,0.00019255,2]
[336734599,1725091839088,-500.0,0.00019255,2]
[336734601,1725091839098,-500.0,0.00019255,2]
[336734602,1725091839107,-500.0,0.00019255,2]
[336734604,1725091839117,-500.0,0.00019255,2]
[336734606,1725091839126,-500.0,0.00019255,2]
[336734608,1725091839135,-500.0,0.00019255,2]
[336734610,1725091839144,-500.0,0.00019255,2]
[336734612,1725091839153,-500.0,0.00019255,2]
[336734614,1725091839163,-150.99,0.00019452,2]
[336734616,1725091839172,-150.99,0.00019726,2]
[336734618,1725091839181,-499.99,0.00019726,2]
[336734620,1725091839190,-2828.61927668,0.00019726,2]
[336734676,1725091839668,-500.0,0.00019255,2]
[336734678,1725091839677,-500.0,0.00019255,2]
[336734679,1725091839686,-342.44407197,0.00019255,2]
[336734919,1725091842600,-157.55592803,0.00019255,2]
[336734920,1725091842609,-500.0,0.00019255,2]
[336734921,1725091842618,-500.0,0.00019255,2]
[336734922,1725091842627,-500.0,0.00019255,2]
[336734923,1725091842636,-500.0,0.00019255,2]
[336734924,1725091842645,-500.0,0.00019255,2]
[336734925,1725091842654,-500.0,0.00019255,2]
[336734926,1725091842663,-500.0,0.00019255,2]
[336734927,1725091842671,-500.0,0.00019255,2]
[336734928,1725091842680,-287.68148136,0.00019255,2]
[336734929,1725091842691,-212.31851864,0.00019255,2]
[336734930,1725091842700,-500.0,0.00019255,2]
[336734931,1725091842709,-1711.87072332,0.00019726,2]
[336734932,1725091842717,-912.69,0.00019726,2]
[336734933,1725091842726,-150.0,0.0002,2]
[336734934,1725091842735,-175.5,0.00020052,2]
[336734935,1725091842743,-2197.42075804,0.00020154,2]
[336734936,1725091842758,-12200.87924196,0.00020154,2]
[336734937,1725091842767,-171.87,0.00020265,2]
[336734938,1725091842776,-1132.76,0.00020288,2]
[336734939,1725091842785,-954.75623437,0.00020409,2]
[336734940,1725091842815,-341.04,0.00019255,2]
[336734941,1725091842827,-158.96,0.00019255,2]
[336734942,1725091842836,-312.48131326,0.00020409,2]
[336734943,1725091842847,-412.1753019,0.00020409,2]
[336734944,1725091842858,-767.14366818,0.00020409,2]
[336734945,1725091842870,-304.44348229,0.00020409,2]
[336734946,1725091842882,-284.93088352,0.00020409,2]
[336734947,1725091842893,-215.06911648,0.00020409,2]
[336734948,1725091842902,-152.02,0.00020428,2]
[336734949,1725091842911,-163.1530977,0.00020474,2]
[336734950,1725091842929,-1276.27483316,0.00020474,2]
[336734951,1725091842940,-432.89653833,0.00020474,2]
[336734952,1725091842951,-1117.28317245,0.00020474,2]
[336734995,1725091844384,-589.48875045,0.00020474,2]
[336734996,1725091844396,-5500.0,0.00020474,2]
[336734997,1725091844406,-315.53025998,0.00020474,2]
[336734998,1725091844423,-935.12,0.00020474,2]
[336734999,1725091844433,-1009.28334793,0.00020474,2]
[336735000,1725091844442,-89.46716679,0.00020753,2]
[336735001,1725091844453,-510.53283321,0.00020753,2]
[336735002,1725091844461,-250.0,0.00020818,2]
[336735003,1725091844470,-622.381,0.000209,2]
[336735004,1725091844481,-196.0553,0.000209,2]
[336735005,1725091844491,-260.402,0.000209,2]
[336735006,1725091844500,-472.965,0.000209,2]
[336735007,1725091844509,-1000.0,0.00020957,2]
[336735008,1725091844519,-143.19796213,0.00020973,2]
[336735009,1725091844530,-895.78987325,0.00020973,2]
[336735010,1725091844542,-1000.01114335,0.00020973,2]
[336735011,1725091844570,-304.44102127,0.00020973,2]
[336735012,1725091844579,-420.0,0.00020981,2]
[336735013,1725091844589,-319.88,0.0002099,3]
[336735014,1725091844598,-266.26,0.00021,2]
[336735015,1725091844607,-500.0,0.00021,2]
[336735016,1725091844616,-500.0,0.00021,2]
[336735017,1725091844624,-29.41897873,0.00021,2]
[336735018,1725091844637,-470.58102127,0.00021,2]
[336735019,1725091844647,-500.0,0.00021,2]
[336735020,1725091844658,-500.0,0.00021,2]
[336735021,1725091844667,-500.0,0.00021,2]
[336735022,1725091844676,-500.0,0.00021,2]
[336735023,1725091844687,-500.0,0.00021,2]
[336735024,1725091844699,-500.0,0.00021,2]
[336735025,1725091844707,-500.0,0.00021,2]
[336735026,1725091844717,-232.31567852,0.00021,2]
[336735027,1725091844731,-267.68432148,0.00021,2]
[336735028,1725091844740,-500.0,0.00021,2]
[336735029,1725091844750,-500.0,0.00021,2]
[336735030,1725091844759,-500.0,0.00021,2]
[336735031,1725091844768,-500.0,0.00021,2]
[336735032,1725091844777,-500.0,0.00021,2]
[336735033,1725091844787,-500.0,0.00021,2]
[336735034,1725091844797,-500.0,0.00021,2]
[336735035,1725091844806,-500.0,0.00021,2]
[336735036,1725091844816,-500.0,0.00021,2]
[336735037,1725091844826,-500.0,0.00021,2]
[336735038,1725091844835,-500.0,0.00021,2]
[336735039,1725091844845,-500.0,0.00021,2]
[336735040,1725091844855,-500.0,0.00021,2]
[336735041,1725091844864,-500.0,0.00021,2]
[336735042,1725091844874,-500.0,0.00021,2]
[336735043,1725091844884,-500.0,0.00021,2]
[336735044,1725091844894,-500.0,0.00021,2]
[336735045,1725091844903,-500.0,0.00021,2]
[336735046,1725091844913,-500.0,0.00021,2]
[336735047,1725091844923,-500.0,0.00021,2]
[336735048,1725091844932,-500.0,0.00021,2]
[336735049,1725091844942,-500.0,0.00021,2]
[336735050,1725091844951,-500.0,0.00021,2]
[336735051,1725091844960,-500.0,0.00021,2]
[336735052,1725091844970,-500.0,0.00021,2]
[336735053,1725091844979,-500.0,0.00021,2]
[336735054,1725091844989,-500.0,0.00021,2]
[336735055,1725091844998,-500.0,0.00021,2]
[336735056,1725091845007,-500.0,0.00021,2]
[336735057,1725091845017,-500.0,0.00021,2]
[336735058,1725091845028,-500.0,0.00021,2]
[336735059,1725091845038,-500.0,0.00021,2]
[336735060,1725091845047,-500.0,0.00021,2]
[336735061,1725091845057,-500.0,0.00021,2]
[336735062,1725091845066,-500.0,0.00021,2]
[336735063,1725091845075,-500.0,0.00021,2]
[336735064,1725091845085,-500.0,0.00021,2]
[336735065,1725091845094,-500.0,0.00021,2]
[336735066,1725091845103,-500.0,0.00021,2]
[336735067,1725091845112,-500.0,0.00021,2]
[336735068,1725091845121,-500.0,0.00021,2]
[336735069,1725091845131,-500.0,0.00021,2]
[336735070,1725091845140,-500.0,0.00021,2]
[336735071,1725091845149,-500.0,0.00021,2]
[336735072,1725091845158,-500.0,0.00021,2]
[336735073,1725091845167,-500.0,0.00021,2]
[336735074,1725091845176,-500.0,0.00021,2]
[336735075,1725091845186,-500.0,0.00021,2]
[336735076,1725091845195,-500.0,0.00021,2]
[336735077,1725091845204,-500.0,0.00021,2]
[336735078,1725091845213,-500.0,0.00021,2]
[336735079,1725091845222,-500.0,0.00021,2]
[336735080,1725091845231,-500.0,0.00021,2]
[336735081,1725091845240,-500.0,0.00021,2]
[336735082,1725091845249,-500.0,0.00021,2]
[336735083,1725091845258,-500.0,0.00021,2]
[336735084,1725091845268,-500.0,0.00021,2]
[336735085,1725091845277,-500.0,0.00021,2]
[336735086,1725091845288,-500.0,0.00021,2]
[336735087,1725091845298,-500.0,0.00021,2]
[336735088,1725091845309,-500.0,0.00021,2]
[336735089,1725091845319,-500.0,0.00021,2]
[336735090,1725091845329,-500.0,0.00021,2]
[336735091,1725091845339,-500.0,0.00021,2]
[336735092,1725091845349,-500.0,0.00021,2]
[336735093,1725091845359,-500.0,0.00021,2]
[336735094,1725091845371,-500.0,0.00021,2]
[336735095,1725091845381,-500.0,0.00021,2]
[336735096,1725091845391,-500.0,0.00021,2]
[336735097,1725091845401,-500.0,0.00021,2]
[336735098,1725091845410,-500.0,0.00021,2]
[336735099,1725091845420,-500.0,0.00021,2]
[336735100,1725091845429,-500.0,0.00021,2]
[336735102,1725091845440,-500.0,0.00021,2]
[336735103,1725091845450,-500.0,0.00021,2]
[336735104,1725091845460,-500.0,0.00021,2]
[336735105,1725091845471,-500.0,0.00021,2]
[336735106,1725091845482,-500.0,0.00021,2]
[336735107,1725091845491,-500.0,0.00021,2]
[336735108,1725091845502,-500.0,0.00021,2]
[336735109,1725091845512,-500.0,0.00021,2]
[336735110,1725091845522,-500.0,0.00021,2]
[336735111,1725091845532,-500.0,0.00021,2]
[336735112,1725091845542,-500.0,0.00021,2]
[336735113,1725091845552,-500.0,0.00021,2]
[336735114,1725091845563,-500.0,0.00021,2]
[336735115,1725091845573,-500.0,0.00021,2]
[336735116,1725091845583,-500.0,0.00021,2]
[336735117,1725091845592,-500.0,0.00021,2]
[336735118,1725091845602,-500.0,0.00021,2]
[336735119,1725091845611,-500.0,0.00021,2]
[336735120,1725091845620,-500.0,0.00021,2]
[336735121,1725091845630,-500.0,0.00021,2]
[336735122,1725091845639,-500.0,0.00021,2]
[336735123,1725091845649,-500.0,0.00021,2]
[336735124,1725091845658,-500.0,0.00021,2]
[336735125,1725091845668,-500.0,0.00021,2]
[336735126,1725091845677,-500.0,0.00021,2]
[336735127,1725091845686,-500.0,0.00021,2]
[336735128,1725091845696,-500.0,0.00021,2]
[336735129,1725091845705,-500.0,0.00021,2]
[336735130,1725091845715,-500.0,0.00021,2]
[336735131,1725091845724,-500.0,0.00021,2]
[336735132,1725091845734,-500.0,0.00021,2]
[336735133,1725091845743,-500.0,0.00021,2]
[336735134,1725091845752,-500.0,0.00021,2]
[336735135,1725091845762,-500.0,0.00021,2]
[336735136,1725091845772,-500.0,0.00021,2]
[336735137,1725091845781,-500.0,0.00021,2]
[336735138,1725091845791,-500.0,0.00021,2]
[336735139,1725091845801,-500.0,0.00021,2]
[336735140,1725091845811,-500.0,0.00021,2]
[336735141,1725091845821,-500.0,0.00021,2]
[336735142,1725091845830,-313.9,0.00021,2]
[336735143,1725091845840,-1003.24,0.00021,2]
[336735144,1725091845850,-300.0,0.00021255,2]
[336735145,1725091845861,-250.0,0.00021299,2]
[336735146,1725091845871,-191.6,0.00021304,2]
[336735147,1725091845881,-150.0,0.00021477,2]
[336735148,1725091845890,-185.52,0.00021589,30]
[336735149,1725091845900,-1000.0,0.00021727,2]
[336735150,1725091845909,-1500.0,0.00021855,2]
[336735151,1725091845919,-5870.9,0.00021918,2]
[336735152,1725091845929,-150.0,0.00021918,2]
[336735153,1725091845939,-250.0,0.00021971,2]
[336735154,1725091845948,-3786.85,0.00022003,2]
[336735155,1725091845958,-3000.0,0.000222,2]
[336735156,1725091845968,-313.9,0.00022465,2]
[336735157,1725091845977,-1000.0,0.00022466,2]
[336735159,1725091845987,-1003.24,0.0002248,2]
[336735160,1725091845997,-150.0,0.00022495,2]
[336735161,1725091846007,-3699.48,0.00022526,2]
[336735162,1725091846018,-300.0,0.00022625,2]
[336735163,1725091846027,-167.0,0.00022805,2]
[336735164,1725091846037,-587.0,0.00022863,2]
[336735165,1725091846046,-152.02,0.00022958,2]
[336735166,1725091846056,-2000.0,0.0002296,2]
[336735167,1725091846066,-173.0,0.00023,2]
[336735168,1725091846076,-1600.0,0.00023,10]
[336735169,1725091846086,-1000.0,0.00023,30]
[336735170,1725091846095,-479.9,0.00023012,2]
[336735171,1725091846104,-580.29,0.00023055,2]
[336735172,1725091846118,-150.0,0.00023071,2]
[336735173,1725091846128,-3450.84,0.00023115,2]
[336735174,1725091846138,-180.0,0.00023205,2]
[336735176,1725091846147,-400.0,0.0002323,2]
[336735177,1725091846157,-10461.4653,0.00023256,2]
[336735178,1725091846167,-250.44673344,0.000233,2]
[336735179,1725091846178,-600.0,0.000233,2]
[336735180,1725091846187,-200.0,0.000233,2]
[336735181,1725091846197,-799.02286836,0.000233,2]
[336735182,1725091846207,-2500.0,0.000233,2]
[336735183,1725091846220,-600.0,0.00023347,2]
[336735184,1725091846231,-3865.68,0.0002337,2]
[336735185,1725091846241,-175.5,0.00023393,2]
[336735186,1725091846250,-261.5692,0.000234,2]
[336735187,1725091846264,-1563.65,0.00023417,2]
[336735188,1725091846275,-299.75653239,0.00023499,2]
[336735189,1725091846284,-1000.0,0.000235,2]
[336735190,1725091846295,-1000.0,0.000235,2]
[336735191,1725091846306,-1000.0,0.000235,2]
[336735192,1725091846315,-1000.0,0.000235,2]
[336735193,1725091846326,-1000.0,0.000235,2]
[336735194,1725091846336,-1000.0,0.000235,2]
[336735195,1725091846346,-1845.24823599,0.000235,5]
[336735196,1725091846355,-1901.21,0.00023543,2]
[336735197,1725091846366,-167.0,0.00023558,2]
[336735198,1725091846379,-150.0,0.00023648,2]
[336735199,1725091846390,-3018.8,0.00023668,2]
[336735200,1725091846400,-300.0,0.000237,8]
[336735201,1725091846411,-510.67030359,0.00023773,2]
[336735202,1725091846420,-600.0,0.000238,8]
[336735203,1725091846430,-183.41939422,0.000238,2]
[336735204,1725091846439,-398.02463428,0.000238,2]
[336735205,1725091846450,-172.70431108,0.0002383,2]
[336735206,1725091846461,-29035.6624812,0.0002387,4]
[336735207,1725091846472,-504.71263536,0.00023873,2]
[336735208,1725091846482,-195.62909647,0.00023879,2]
[336735209,1725091846492,-1104351.33285775,0.0002388,2]
[336735210,1725091846501,-200.1223807,0.0002388,2]
[336735211,1725091846511,-900.0,0.000239,8]
[336735212,1725091846520,-1851.04,0.00023926,2]
[336735213,1725091846530,-313.9,0.0002393,2]
[336735214,1725091846539,-510.67030357,0.00023934,2]
[336735215,1725091846549,-1003.24,0.0002396,2]
[336735216,1725091846560,-191.6,0.00023967,2]
[336735217,1725091846569,-510.67030357,0.00024095,2]
[336735218,1725091846579,-171.30269,0.0002416,2]
[336735219,1725091846588,-1200.0,0.000242,8]
[336735220,1725091846599,-2500.0,0.00024225,2]
[336735221,1725091846608,-150.0,0.00024225,2]
[336735222,1725091846618,-510.67030357,0.00024256,2]
[336735223,1725091846628,-2000.0,0.000243,2]
[336735224,1725091846637,-1600.0,0.000243,8]
[336735225,1725091846647,-167.0,0.0002431,2]
[336735226,1725091846657,-2500.0,0.00024378,5]
[336735227,1725091846666,-1000.0,0.00024396,2]
[336735228,1725091846676,-232.16444723,0.00024398,2]
[336735229,1725091846686,-231274.03870903,0.000244,11]
[336735230,1725091846695,-202.0,0.000244,120]
[336735231,1725091846705,-2500.0,0.000244,5]
[336735232,1725091846715,-300.0,0.000244,5]
[336735233,1725091846724,-300.0,0.000244,8]
[336735234,1725091846734,-11927.4408178,0.00024403,2]
[336735235,1725091846745,-1062.3983548,0.00024403,2]
[336735236,1725091847049,-1602.3323592,0.00024403,2]
[336735237,1725091847070,-3227.2906191,0.00024403,2]
[336735238,1725091847081,-11754.13923034,0.00024409,2]
[336735239,1725091847091,-510.67030357,0.00024417,2]
[336735240,1725091847100,-334.85186343,0.0002442,2]
[336735241,1725091847111,-3135.35433298,0.00024429,2]
[336735242,1725091847120,-35000.0,0.00024431,2]
[336735243,1725091847130,-5002.63332965,0.00024463,7]
[336735244,1725091847509,-1138.97982787,0.00024463,7]
[336735245,1725091847520,-1858.38684248,0.00024463,7]
[336735246,1725091847530,-1000.0,0.00024479,9]
[336735247,1725091847539,-223.93853253,0.00024479,7]
[336735248,1725091847551,-776.06146747,0.00024479,7]
[336735249,1725091847560,-647.03681964,0.000245,15]
[336735250,1725091847572,-352.96318036,0.000245,15]
[336735251,1725091847581,-363.33683964,0.000245,2]
[336735252,1725091847592,-605.70812265,0.000245,2]
[336735253,1725091847603,-709.17,0.000245,2]
[336735254,1725091847615,-166.45471331,0.000245,2]
[336735255,1725091847624,-1000.0,0.000245,2]
[336735256,1725091847634,-300.0,0.000245,8]
[336735257,1725091847643,-1500.0,0.00024567,14]
[336735258,1725091847653,-510.67030357,0.00024578,2]
[336735259,1725091847663,-328.67684263,0.00024599,2]
[336735260,1725091847674,-671.32315737,0.00024599,2]
[336735261,1725091847684,-166.61151049,0.000246,8]
[336735262,1725091847695,-133.38848951,0.000246,8]
[336735263,1725091847705,-420.9357322,0.00024641,7]
[336735264,1725091847717,-12989.71828522,0.00024641,7]
[336735265,1725091847727,-3481.7396242,0.00024641,7]
[336735266,1725091847736,-153.68796,0.00024671,2]
[336735267,1725091847746,-1000.0,0.00024699,20]
[336735268,1725091847756,-427.27901325,0.000247,2]
[336735269,1725091847767,-2953.83446759,0.000247,2]
[336735270,1725091847777,-232.73932536,0.000247,2]
[336735271,1725091847787,-300.0,0.000247,9]
[336735272,1725091847796,-510.67030357,0.00024739,2]
[336735273,1725091847806,-185.52,0.0002475,30]
[336735274,1725091847816,-1000.0,0.00024799,2]
[336735275,1725091847826,-2000.975871,0.000248,7]
[336735276,1725091847836,-611.0,0.000248,9]
[336735277,1725091847846,-150.0,0.00024802,2]
[336735278,1725091847855,-47627.98874653,0.00024825,2]
[336735279,1725091847865,-1085.35905848,0.00024831,2]
[336735280,1725091847876,-6842.817547,0.00024831,2]
[336735281,1725091847886,-1085.35905846,0.00024866,2]
[336735282,1725091847896,-6842.817547,0.00024866,2]
[336735283,1725091847906,-1000.0,0.00024899,2]
[336735284,1725091847916,-496.0,0.000249,8]
[336735285,1725091847926,-193.0,0.000249,8]
[336735286,1725091847936,-150.0,0.000249,2]
[336735287,1725091847947,-15158.78824117,0.000249,2]
[336735288,1725091847957,-1363.5374395,0.000249,14]
[336735289,1725091847968,-3000.0,0.000249,2]
[336735290,1725091847978,-172.70431108,0.000249,2]
[336735291,1725091847988,-510.67030357,0.000249,2]
[336735292,1725091847999,-1085.35905846,0.000249,2]
[336735293,1725091848009,-823.0,0.00024915,2]
[336735294,1725091848019,-15267.1782548,0.0002492,4]
[336735295,1725091848029,-500.0,0.00024928,4]
[336735296,1725091848040,-1000.0,0.00024928,2]
[336735297,1725091848050,-1000.0,0.00024928,2]
[336735298,1725091848061,-1000.0,0.00024928,2]
[336735299,1725091848071,-1000.0,0.00024928,2]
[336735300,1725091848082,-1000.0,0.00024928,2]
[336735301,1725091848092,-1000.0,0.00024928,2]
[336735302,1725091848102,-1000.0,0.00024928,2]
[336735303,1725091848112,-1000.0,0.00024928,2]
[336735304,1725091848122,-1000.0,0.00024928,2]
[336735305,1725091848132,-1000.0,0.00024928,2]
[336735306,1725091848142,-7805.1597434,0.0002493,2]
[336735307,1725091848151,-1000.0,0.0002493,2]
[336735308,1725091848161,-1000.0,0.0002493,2]
[336735309,1725091848171,-1000.0,0.0002493,2]
[336735310,1725091848181,-1000.0,0.0002493,2]
[336735311,1725091848191,-1000.0,0.0002493,2]
[336735312,1725091848201,-1000.0,0.0002493,2]
[336735313,1725091848210,-1000.0,0.0002493,2]
[336735314,1725091848220,-1000.0,0.0002493,2]
[336735315,1725091848230,-940.85686878,0.0002493,2]
[336735316,1725091848239,-1000.0,0.0002493,2]
[336735317,1725091848250,-1000.0,0.00024931,2]
[336735318,1725091848259,-1000.0,0.00024931,2]
[336735319,1725091848269,-1000.0,0.00024931,2]
[336735320,1725091848279,-490.38790581,0.00024931,2]
[336735321,1725091848289,-1784.09057708,0.00024931,2]
[336735322,1725091848299,-1784.09057708,0.00024931,2]
[336735323,1725091848310,-944.82414886,0.00024931,2]
[336735324,1725091848321,-944.82414886,0.00024931,2]
[336735325,1725091848330,-33233.37164456,0.00024931,2]
[336735326,1725091848343,-301.616,0.00024931,2]
[336735327,1725091848355,-1023.82317081,0.00024931,2]
[336735328,1725091848391,-2754.31674355,0.00024931,2]
[336735329,1725091848403,-11472.72054191,0.00024931,2]
[336735330,1725091848415,-337.73168912,0.00024931,2]
[336735331,1725091848426,-2541.3138532,0.00024931,2]